[Event "Early-Titled-Tuesday-Blitz-March-05-2024"]
[Site "Chess.com"]
[Date "2024.03.05"]
[Round "5"]
[White "Ajedrez_con_German"]
[Black "Knightmare1014"]
[Result "1-0"]
[WhiteElo "2579"]
[BlackElo "2318"]
[TimeControl "180+1"]
[EndTime "8:58:13 PST"]
[Termination "Ajedrez_con_German won by resignation"]

1. Nf3 {[%clk 0:03:00.9]} 1... d5 {[%clk 0:02:46.6]} 2. e3 {[%clk 0:03:01.2]}
2... Nf6 {[%clk 0:02:46]} 3. b3 {[%clk 0:03:01.7]} 3... Bf5 {[%clk 0:02:45.6]}
4. Bb2 {[%clk 0:03:02.2]} 4... e6 {[%clk 0:02:46.3]} 5. Be2 {[%clk 0:03:02.8]}
5... c6 {[%clk 0:02:46.4]} 6. O-O {[%clk 0:03:03.4]} 6... Be7 {[%clk 0:02:46.8]}
7. c4 {[%clk 0:03:04.1]} 7... h6 {[%clk 0:02:46.9]} 8. cxd5 {[%clk 0:03:05]}
8... exd5 {[%clk 0:02:45.3]} 9. d3 {[%clk 0:03:05.2]} 9... O-O {[%clk
0:02:44.8]} 10. a3 {[%clk 0:03:05.8]} 10... Nbd7 {[%clk 0:02:44.3]} 11. Re1
{[%clk 0:03:06.4]} 11... Bh7 {[%clk 0:02:43.6]} 12. Nbd2 {[%clk 0:03:06.7]}
12... a5 {[%clk 0:02:43.2]} 13. Qc2 {[%clk 0:03:06.7]} 13... Qc7 {[%clk
0:02:37.4]} 14. Bf1 {[%clk 0:03:06.9]} 14... Bd6 {[%clk 0:02:36.1]} 15. Bc3
{[%clk 0:03:05.7]} 15... Ne5 {[%clk 0:02:29.1]} 16. Nxe5 {[%clk 0:03:03.1]}
16... Bxe5 {[%clk 0:02:29.3]} 17. Bxe5 {[%clk 0:03:04]} 17... Qxe5 {[%clk
0:02:29.3]} 18. Nf3 {[%clk 0:03:04.6]} 18... Qd6 {[%clk 0:02:27.9]} 19. Qb2
{[%clk 0:03:04.2]} 19... Rfe8 {[%clk 0:02:24]} 20. b4 {[%clk 0:03:03.2]} 20...
Nd7 {[%clk 0:02:18.3]} 21. h3 {[%clk 0:02:59.7]} 21... Qc7 {[%clk 0:01:51.5]}
22. Rec1 {[%clk 0:02:54.4]} 22... Nb6 {[%clk 0:01:49.7]} 23. Qb3 {[%clk
0:02:41.5]} 23... a4 {[%clk 0:01:48.5]} 24. Qb2 {[%clk 0:02:36.6]} 24... Qd6
{[%clk 0:01:45]} 25. Qd4 {[%clk 0:02:31.6]} 25... Nc8 {[%clk 0:01:42.7]} 26.
Rab1 {[%clk 0:02:21.3]} 26... Na7 {[%clk 0:01:40.1]} 27. Qb2 {[%clk 0:02:20.4]}
27... Nb5 {[%clk 0:01:37.3]} 28. Nd4 {[%clk 0:02:19.7]} 28... Nxd4 {[%clk
0:01:32.3]} 29. Qxd4 {[%clk 0:02:20.6]} 29... b5 {[%clk 0:01:24]} 30. Rc5 {[%clk
0:02:16.9]} 30... Rac8 {[%clk 0:01:22.1]} 31. Rbc1 {[%clk 0:02:17.2]} 31... Rc7
{[%clk 0:01:10]} 32. Qc3 {[%clk 0:02:08.3]} 32... Rec8 {[%clk 0:01:09.8]} 33. d4
{[%clk 0:02:07.4]} 33... Bf5 {[%clk 0:00:59.7]} 34. Bxb5 {[%clk 0:02:02.6]}
34... Bd7 {[%clk 0:00:53.4]} 35. Be2 {[%clk 0:02:00.1]} 35... Qg6 {[%clk
0:00:52]} 36. Kh1 {[%clk 0:01:56.7]} 36... f5 {[%clk 0:00:48.8]} 37. b5 {[%clk
0:01:54.3]} 37... Qd6 {[%clk 0:00:44]} 38. Bf3 {[%clk 0:01:39.2]} 38... Kh7
{[%clk 0:00:25.8]} 39. Bxd5 {[%clk 0:01:33.3]} 39... cxd5 {[%clk 0:00:21.7]} 40.
Rxc7 {[%clk 0:01:33.3]} 40... Rxc7 {[%clk 0:00:20.5]} 41. Qxc7 {[%clk
0:01:32.9]} 41... Qxc7 {[%clk 0:00:21.2]} 42. Rxc7 {[%clk 0:01:31.9]} 42... Bxb5
{[%clk 0:00:21.8]} 43. Kg1 {[%clk 0:01:15.6]} 43... Bc4 {[%clk 0:00:21.5]} 44.
Rc6 {[%clk 0:01:09.2]} 44... Kg8 {[%clk 0:00:19.9]} 45. f3 {[%clk 0:01:09.7]}
45... Kf7 {[%clk 0:00:19.4]} 46. Kf2 {[%clk 0:01:09.1]} 46... Bb3 {[%clk
0:00:19.3]} 47. g4 {[%clk 0:01:08]} 47... fxg4 {[%clk 0:00:18.1]} 48. hxg4
{[%clk 0:01:07.3]} 48... Ke7 {[%clk 0:00:18.2]} 49. Kg3 {[%clk 0:01:07.2]} 49...
Kf7 {[%clk 0:00:17.9]} 50. Kf4 {[%clk 0:01:06.7]} 50... Ke7 {[%clk 0:00:17.8]}
51. e4 {[%clk 0:01:03.3]} 51... dxe4 {[%clk 0:00:17.5]} 52. fxe4 {[%clk
0:01:04.2]} 52... g5+ {[%clk 0:00:17.2]} 53. Ke5 {[%clk 0:01:02]} 53... Kf7
{[%clk 0:00:17.2]} 54. Rxh6 {[%clk 0:01:01.7]} 54... Kg7 {[%clk 0:00:16.9]} 55.
Ra6 {[%clk 0:01:00.5]} 55... Bc2 {[%clk 0:00:15.5]} 56. d5 {[%clk 0:00:59.1]}
56... Bd1 {[%clk 0:00:15.2]} 57. d6 {[%clk 0:00:57.9]} 1-0

[Event "Early-Titled-Tuesday-Blitz-March-05-2024"]
[Site "Chess.com"]
[Date "2024.03.05"]
[Round "5"]
[White "Mikasinski"]
[Black "Hope_6"]
[Result "0-1"]
[WhiteElo "2622"]
[BlackElo "2827"]
[TimeControl "180+1"]
[EndTime "8:58:17 PST"]
[Termination "Hope_6 won on time"]

1. e4 {[%clk 0:02:18.8]} 1... c6 {[%clk 0:02:57.9]} 2. d4 {[%clk 0:02:18.3]}
2... d5 {[%clk 0:02:58.8]} 3. e5 {[%clk 0:02:18.3]} 3... Bf5 {[%clk 0:02:58.3]}
4. Bd3 {[%clk 0:02:17.7]} 4... Bxd3 {[%clk 0:02:57.9]} 5. Qxd3 {[%clk
0:02:18.5]} 5... e6 {[%clk 0:02:58.3]} 6. h4 {[%clk 0:02:18.7]} 6... c5 {[%clk
0:02:52.7]} 7. c3 {[%clk 0:02:17.7]} 7... Nc6 {[%clk 0:02:52.3]} 8. Nf3 {[%clk
0:02:15.3]} 8... Qb6 {[%clk 0:02:50.5]} 9. O-O {[%clk 0:02:12.7]} 9... h5 {[%clk
0:02:47.5]} 10. dxc5 {[%clk 0:02:11.9]} 10... Bxc5 {[%clk 0:02:46.7]} 11. b4
{[%clk 0:02:11.8]} 11... Be7 {[%clk 0:02:45.3]} 12. a4 {[%clk 0:02:12.1]} 12...
Nh6 {[%clk 0:02:41.4]} 13. a5 {[%clk 0:02:11.8]} 13... Qc7 {[%clk 0:02:40.9]}
14. Re1 {[%clk 0:02:06.8]} 14... Nf5 {[%clk 0:02:38.7]} 15. Bg5 {[%clk
0:02:04.6]} 15... Bxg5 {[%clk 0:02:38.2]} 16. hxg5 {[%clk 0:02:03.1]} 16... g6
{[%clk 0:02:37.6]} 17. Na3 {[%clk 0:02:03.3]} 17... a6 {[%clk 0:02:34.1]} 18.
Nc2 {[%clk 0:01:57.4]} 18... O-O {[%clk 0:02:32.7]} 19. Ncd4 {[%clk 0:01:49.3]}
19... Ncxd4 {[%clk 0:02:24.9]} 20. Nxd4 {[%clk 0:01:44.3]} 20... Nxd4 {[%clk
0:02:21]} 21. cxd4 {[%clk 0:01:44.8]} 21... Rfc8 {[%clk 0:02:21.5]} 22. Rab1
{[%clk 0:01:41.4]} 22... Qc3 {[%clk 0:02:07.6]} 23. Qd1 {[%clk 0:01:38]} 23...
Rc4 {[%clk 0:02:05.6]} 24. b5 {[%clk 0:01:29]} 24... axb5 {[%clk 0:02:04.5]} 25.
Rxb5 {[%clk 0:01:27.8]} 25... Rxa5 {[%clk 0:02:02.3]} 26. Rxb7 {[%clk
0:01:27.6]} 26... Ra2 {[%clk 0:01:38.2]} 27. Qb1 {[%clk 0:01:04.8]} 27... Qc2
{[%clk 0:01:26]} 28. Qxc2 {[%clk 0:00:58.2]} 28... Rcxc2 {[%clk 0:01:25.5]} 29.
Rf1 {[%clk 0:00:55.6]} 29... Rd2 {[%clk 0:01:25.3]} 30. Rb4 {[%clk 0:00:50]}
30... Kg7 {[%clk 0:01:25]} 31. g3 {[%clk 0:00:48.1]} 31... Ra3 {[%clk
0:01:23.9]} 32. Kg2 {[%clk 0:00:43.1]} 32... Rad3 {[%clk 0:01:08.6]} 33. Ra1
{[%clk 0:00:39.6]} 33... Rc2 {[%clk 0:01:05.9]} 34. Ra7 {[%clk 0:00:38.4]} 34...
Rdd2 {[%clk 0:01:05.6]} 35. Rb8 {[%clk 0:00:28.5]} 35... Rxf2+ {[%clk
0:01:04.1]} 36. Kg1 {[%clk 0:00:26.7]} 36... Rg2+ {[%clk 0:01:01.3]} 37. Kf1
{[%clk 0:00:26.1]} 37... Rcf2+ {[%clk 0:00:57.2]} 38. Ke1 {[%clk 0:00:26.2]}
38... Ra2 {[%clk 0:00:57.3]} 39. Rxa2 {[%clk 0:00:24]} 39... Rxa2 {[%clk
0:00:56.9]} 40. Rb3 {[%clk 0:00:20.6]} 40... Rh2 {[%clk 0:00:51.7]} 41. Rf3
{[%clk 0:00:15.4]} 41... h4 {[%clk 0:00:49.3]} 42. g4 {[%clk 0:00:05.5]} 42...
Rg2 {[%clk 0:00:48.7]} 43. Rf4 {[%clk 0:00:04.7]} 43... h3 {[%clk 0:00:45.1]}
44. Kf1 {[%clk 0:00:05]} 44... Rg3 {[%clk 0:00:44.7]} 45. Kf2 {[%clk 0:00:01.3]}
45... h2 {[%clk 0:00:41.3]} 0-1

[Event "Early-Titled-Tuesday-Blitz-March-05-2024"]
[Site "Chess.com"]
[Date "2024.03.05"]
[Round "5"]
[White "Aalessia"]
[Black "betta2004"]
[Result "1-0"]
[WhiteElo "2412"]
[BlackElo "2543"]
[TimeControl "180+1"]
[EndTime "8:58:17 PST"]
[Termination "Aalessia won by resignation"]

1. d4 {[%clk 0:03:00.9]} 1... Nf6 {[%clk 0:02:34.5]} 2. c4 {[%clk 0:02:57.7]}
2... c5 {[%clk 0:02:33.8]} 3. d5 {[%clk 0:02:57.3]} 3... a6 {[%clk 0:02:34]} 4.
a4 {[%clk 0:02:55.7]} 4... d6 {[%clk 0:02:33.1]} 5. Nc3 {[%clk 0:02:52.9]} 5...
g6 {[%clk 0:02:32.6]} 6. e4 {[%clk 0:02:53.3]} 6... e6 {[%clk 0:02:32.1]} 7. f4
{[%clk 0:02:53]} 7... Qe7 {[%clk 0:02:30.2]} 8. e5 {[%clk 0:02:47.6]} 8... dxe5
{[%clk 0:02:28.2]} 9. fxe5 {[%clk 0:02:45.7]} 9... exd5 {[%clk 0:02:27.3]} 10.
Qe2 {[%clk 0:02:42.8]} 10... Ne4 {[%clk 0:00:57.1]} 11. Nxd5 {[%clk 0:02:35.6]}
11... Qh4+ {[%clk 0:00:57.7]} 12. Kd1 {[%clk 0:02:15.7]} 12... Nf2+ {[%clk
0:00:56.8]} 13. Kc2 {[%clk 0:02:14.6]} 13... Bf5+ {[%clk 0:00:56.4]} 14. Kb3
{[%clk 0:02:12.5]} 14... Nxh1 {[%clk 0:00:46.8]} 15. Nc7+ {[%clk 0:02:09.5]}
15... Kd8 {[%clk 0:00:46.9]} 16. Nxa8 {[%clk 0:02:06.8]} 16... Nc6 {[%clk
0:00:46.9]} 17. Be3 {[%clk 0:02:03.2]} 17... Bh6 {[%clk 0:00:37.6]} 18. Nf3
{[%clk 0:01:59.7]} 18... Bxe3 {[%clk 0:00:33.8]} 19. Rd1+ {[%clk 0:01:54.3]}
19... Qd4 {[%clk 0:00:21.8]} 20. Rxd4+ {[%clk 0:01:52]} 20... cxd4 {[%clk
0:00:17]} 21. Nb6 {[%clk 0:01:48.4]} 21... Nf2 {[%clk 0:00:10.2]} 22. Nd5 {[%clk
0:01:44.7]} 22... Bd3 {[%clk 0:00:09.7]} 23. Qe1 {[%clk 0:01:41.4]} 23... Ng4
{[%clk 0:00:06.3]} 24. Bxd3 {[%clk 0:01:39.4]} 24... Bf2 {[%clk 0:00:03.6]} 25.
Qe4 {[%clk 0:01:34.3]} 25... Na5+ {[%clk 0:00:03.3]} 26. Ka2 {[%clk 0:01:32.9]}
26... h5 {[%clk 0:00:02.6]} 27. h3 {[%clk 0:01:32]} 27... Ne3 {[%clk 0:00:02.8]}
28. Qxd4 {[%clk 0:01:27.7]} 28... Nd1 {[%clk 0:00:03.1]} 29. Ne3+ {[%clk
0:01:24.9]} 29... Kc8 {[%clk 0:00:01.8]} 30. Qc5+ {[%clk 0:01:23.5]} 30... Nc6
{[%clk 0:00:02.3]} 31. Be4 {[%clk 0:01:06.8]} 31... Bxe3 {[%clk 0:00:02.6]} 32.
Qa3 {[%clk 0:01:00.8]} 32... Rd8 {[%clk 0:00:01.9]} 33. Bxc6 {[%clk 0:01:00.3]}
33... bxc6 {[%clk 0:00:02.4]} 34. Qe7 {[%clk 0:00:59.4]} 34... Bb6 {[%clk
0:00:02.9]} 35. Qxf7 {[%clk 0:00:58.3]} 35... Ne3 {[%clk 0:00:03.5]} 36. Qxg6
{[%clk 0:00:57.8]} 36... Kb7 {[%clk 0:00:02.1]} 37. e6 {[%clk 0:00:54.7]} 37...
Nxc4 {[%clk 0:00:02.1]} 38. e7 {[%clk 0:00:54.9]} 38... Rc8 {[%clk 0:00:01.5]}
39. e8=Q {[%clk 0:00:54.8]} 39... Rxe8 {[%clk 0:00:02.1]} 40. Qxe8 {[%clk
0:00:55.1]} 40... Bc7 {[%clk 0:00:02.1]} 41. Qxh5 {[%clk 0:00:54]} 41... Nd6
{[%clk 0:00:02]} 42. Qg6 {[%clk 0:00:53.5]} 42... c5 {[%clk 0:00:02.1]} 43. h4
{[%clk 0:00:53.8]} 43... c4 {[%clk 0:00:02.3]} 44. h5 {[%clk 0:00:54.1]} 44...
Kc6 {[%clk 0:00:02.9]} 45. Ne5+ {[%clk 0:00:54.1]} 45... Kd5 {[%clk 0:00:03.8]}
46. Qg5 {[%clk 0:00:53]} 46... Ne4 {[%clk 0:00:04.1]} 47. Qe3 {[%clk 0:00:46.8]}
47... Bxe5 {[%clk 0:00:04.4]} 48. h6 {[%clk 0:00:46.9]} 48... Nc5 {[%clk
0:00:04.1]} 49. h7 {[%clk 0:00:46.2]} 49... Nd3 {[%clk 0:00:03.7]} 50. Qxe5+
{[%clk 0:00:43.9]} 50... Nxe5 {[%clk 0:00:04.2]} 51. h8=Q {[%clk 0:00:44.2]}
51... Nc6 {[%clk 0:00:04.9]} 52. g4 {[%clk 0:00:43.7]} 52... Kc5 {[%clk
0:00:04.8]} 53. g5 {[%clk 0:00:43.6]} 53... Nb4+ {[%clk 0:00:05.3]} 54. Kb1
{[%clk 0:00:43.2]} 54... Nd5 {[%clk 0:00:06.2]} 55. g6 {[%clk 0:00:43.1]} 55...
c3 {[%clk 0:00:06.1]} 1-0

[Event "Early-Titled-Tuesday-Blitz-March-05-2024"]
[Site "Chess.com"]
[Date "2024.03.05"]
[Round "5"]
[White "ReinisUz"]
[Black "M1711"]
[Result "0-1"]
[WhiteElo "2415"]
[BlackElo "2590"]
[TimeControl "180+1"]
[EndTime "8:58:18 PST"]
[Termination "M1711 won by checkmate"]

1. c4 {[%clk 0:03:00.9]} 1... e6 {[%clk 0:02:56.9]} 2. Nc3 {[%clk 0:02:59.2]}
2... d5 {[%clk 0:02:56.9]} 3. d4 {[%clk 0:02:59.1]} 3... Nf6 {[%clk 0:02:55.2]}
4. cxd5 {[%clk 0:02:58.9]} 4... exd5 {[%clk 0:02:55.6]} 5. Bg5 {[%clk
0:02:58.6]} 5... c6 {[%clk 0:02:54.8]} 6. Qc2 {[%clk 0:02:53.6]} 6... Bd6 {[%clk
0:02:53.7]} 7. e3 {[%clk 0:02:53.6]} 7... O-O {[%clk 0:02:52.1]} 8. Nf3 {[%clk
0:02:51.4]} 8... a5 {[%clk 0:02:49.8]} 9. Bd3 {[%clk 0:02:50.9]} 9... h6 {[%clk
0:02:49.8]} 10. Bh4 {[%clk 0:02:48.1]} 10... Na6 {[%clk 0:02:49.8]} 11. a3
{[%clk 0:02:46.6]} 11... Nc7 {[%clk 0:02:49.7]} 12. Ne5 {[%clk 0:02:35.5]} 12...
c5 {[%clk 0:02:12.2]} 13. f4 {[%clk 0:02:24.8]} 13... cxd4 {[%clk 0:02:07.8]}
14. exd4 {[%clk 0:02:24.7]} 14... Ne6 {[%clk 0:02:07.7]} 15. Qf2 {[%clk
0:01:45.5]} 15... g5 {[%clk 0:01:48]} 16. fxg5 {[%clk 0:01:22.2]} 16... hxg5
{[%clk 0:01:47]} 17. Bg3 {[%clk 0:01:22.4]} 17... Kg7 {[%clk 0:01:22.3]} 18. Rf1
{[%clk 0:01:12]} 18... b5 {[%clk 0:01:03.4]} 19. Nxb5 {[%clk 0:00:18.1]} 19...
Be7 {[%clk 0:00:53.5]} 20. a4 {[%clk 0:00:17.7]} 20... Bb7 {[%clk 0:00:38.7]}
21. Qf5 {[%clk 0:00:15.9]} 21... Bb4+ {[%clk 0:00:27.1]} 22. Kf2 {[%clk
0:00:13.4]} 22... Rh8 {[%clk 0:00:17.9]} 23. Kg1 {[%clk 0:00:13.3]} 23... Be7
{[%clk 0:00:16.5]} 24. h4 {[%clk 0:00:12.2]} 24... gxh4 {[%clk 0:00:15.9]} 25.
Bf4 {[%clk 0:00:10.9]} 25... Rh5 {[%clk 0:00:15.3]} 26. Qh3 {[%clk 0:00:07.1]}
26... Nxf4 {[%clk 0:00:14.9]} 27. Rxf4 {[%clk 0:00:08]} 27... Bc8 {[%clk
0:00:14.4]} 28. Qf3 {[%clk 0:00:07.3]} 28... Rg5 {[%clk 0:00:09.6]} 29. Rf1
{[%clk 0:00:07.2]} 29... Rg3 {[%clk 0:00:07.1]} 30. Qf2 {[%clk 0:00:05.6]} 30...
Be6 {[%clk 0:00:05.5]} 31. Nc6 {[%clk 0:00:05.4]} 31... Qd7 {[%clk 0:00:03]} 32.
Nxe7 {[%clk 0:00:05.9]} 32... Qxe7 {[%clk 0:00:03.2]} 33. Rxf6 {[%clk
0:00:06.3]} 33... Rg8 {[%clk 0:00:02.4]} 34. Kh1 {[%clk 0:00:03.3]} 34... Kf8
{[%clk 0:00:02.6]} 35. Rg1 {[%clk 0:00:02.3]} 35... h3 {[%clk 0:00:02.7]} 36.
Rf5 {[%clk 0:00:01.5]} 36... hxg2+ {[%clk 0:00:03.3]} 37. Kh2 {[%clk 0:00:02]}
37... Qh4# {[%clk 0:00:03.4]} 0-1

[Event "Early-Titled-Tuesday-Blitz-March-05-2024"]
[Site "Chess.com"]
[Date "2024.03.05"]
[Round "5"]
[White "Der_Balak_3Halak"]
[Black "KononenkoD"]
[Result "0-1"]
[WhiteElo "2465"]
[BlackElo "2609"]
[TimeControl "180+1"]
[EndTime "8:58:19 PST"]
[Termination "KononenkoD won by resignation"]

1. e4 {[%clk 0:03:00.9]} 1... d5 {[%clk 0:02:59.2]} 2. Nc3 {[%clk 0:02:50.6]}
2... d4 {[%clk 0:02:58.9]} 3. Nce2 {[%clk 0:02:51.2]} 3... c5 {[%clk 0:02:59.3]}
4. d3 {[%clk 0:02:49.9]} 4... Nc6 {[%clk 0:02:59.9]} 5. f4 {[%clk 0:02:50.3]}
5... e5 {[%clk 0:02:57.3]} 6. Nf3 {[%clk 0:02:49.7]} 6... f5 {[%clk 0:02:54.5]}
7. exf5 {[%clk 0:02:44]} 7... Bxf5 {[%clk 0:02:54.1]} 8. Ng3 {[%clk 0:02:35.6]}
8... Bg4 {[%clk 0:02:52.1]} 9. fxe5 {[%clk 0:02:35.2]} 9... Qc7 {[%clk
0:02:38.1]} 10. Be2 {[%clk 0:02:26.8]} 10... Bxf3 {[%clk 0:02:38.1]} 11. Bxf3
{[%clk 0:02:24.4]} 11... Nxe5 {[%clk 0:02:38.7]} 12. Bh5+ {[%clk 0:02:18.4]}
12... g6 {[%clk 0:02:35.9]} 13. Be2 {[%clk 0:02:18.2]} 13... O-O-O {[%clk
0:02:26.8]} 14. O-O {[%clk 0:02:17.3]} 14... Bd6 {[%clk 0:02:23.7]} 15. Ne4
{[%clk 0:02:14.8]} 15... Ne7 {[%clk 0:02:23.2]} 16. Ng5 {[%clk 0:01:54.3]} 16...
Qd7 {[%clk 0:02:06]} 17. Bf4 {[%clk 0:01:52.6]} 17... N7c6 {[%clk 0:02:04.9]}
18. Nf7 {[%clk 0:01:39.6]} 18... Qxf7 {[%clk 0:01:42.8]} 19. Bxe5 {[%clk
0:01:38]} 19... Qc7 {[%clk 0:01:43.4]} 20. Bxh8 {[%clk 0:01:28.5]} 20... Bxh2+
{[%clk 0:01:43.6]} 21. Kh1 {[%clk 0:01:29]} 21... Rxh8 {[%clk 0:01:43.4]} 22.
Bg4+ {[%clk 0:01:20.8]} 22... Kb8 {[%clk 0:01:42.9]} 23. Qf3 {[%clk 0:01:20.7]}
23... h5 {[%clk 0:01:27.9]} 24. Bd7 {[%clk 0:01:05.7]} 24... Ne5 {[%clk
0:01:13.1]} 25. Qf8+ {[%clk 0:01:03.9]} 25... Qd8 {[%clk 0:01:07.9]} 26. Qxd8+
{[%clk 0:00:43.1]} 26... Rxd8 {[%clk 0:01:08.8]} 27. Kxh2 {[%clk 0:00:39.6]}
27... Rxd7 {[%clk 0:01:07.7]} 28. Kg1 {[%clk 0:00:37.2]} 28... Ng4 {[%clk
0:01:02.4]} 29. Rf8+ {[%clk 0:00:28.5]} 29... Kc7 {[%clk 0:01:02.1]} 30. Raf1
{[%clk 0:00:27.8]} 30... Ne3 {[%clk 0:00:58.9]} 31. R1f7 {[%clk 0:00:27.5]}
31... Nxc2 {[%clk 0:00:58.6]} 32. Rxd7+ {[%clk 0:00:27.3]} 32... Kxd7 {[%clk
0:00:59]} 33. Rg8 {[%clk 0:00:28.2]} 33... Nb4 {[%clk 0:00:58.4]} 34. Rg7+
{[%clk 0:00:27.6]} 34... Kc8 {[%clk 0:00:57]} 35. Rg8+ {[%clk 0:00:27.4]} 35...
Kc7 {[%clk 0:00:56.8]} 36. Rg7+ {[%clk 0:00:28.3]} 36... Kc8 {[%clk 0:00:53.6]}
37. Rxg6 {[%clk 0:00:24.8]} 37... Nxd3 {[%clk 0:00:53.4]} 38. Rg5 {[%clk
0:00:24.8]} 38... c4 {[%clk 0:00:52.7]} 39. Rd5 {[%clk 0:00:20.7]} 39... Nxb2
{[%clk 0:00:43.9]} 40. Rxd4 {[%clk 0:00:20.8]} 40... b5 {[%clk 0:00:43.1]} 41.
Rd5 {[%clk 0:00:20.2]} 41... a6 {[%clk 0:00:41.7]} 42. Rxh5 {[%clk 0:00:20.7]}
42... Nd3 {[%clk 0:00:40.1]} 43. Kf1 {[%clk 0:00:20.6]} 43... c3 {[%clk
0:00:38.2]} 44. Rh3 {[%clk 0:00:21.1]} 44... c2 {[%clk 0:00:38.3]} 45. Rh8+
{[%clk 0:00:18]} 45... Kd7 {[%clk 0:00:31.4]} 46. Rh7+ {[%clk 0:00:18.9]} 46...
Kd6 {[%clk 0:00:31.8]} 47. Rh6+ {[%clk 0:00:19.4]} 47... Kd5 {[%clk 0:00:29.9]}
48. Rh5+ {[%clk 0:00:18.8]} 48... Kc4 {[%clk 0:00:26.1]} 49. Rh4+ {[%clk
0:00:17.8]} 49... Kc3 {[%clk 0:00:25.4]} 50. Ke2 {[%clk 0:00:17.5]} 50... c1=Q
{[%clk 0:00:25.6]} 0-1

[Event "Early-Titled-Tuesday-Blitz-March-05-2024"]
[Site "Chess.com"]
[Date "2024.03.05"]
[Round "5"]
[White "Eliwood44"]
[Black "Darius321"]
[Result "1-0"]
[WhiteElo "2512"]
[BlackElo "2365"]
[TimeControl "180+1"]
[EndTime "8:58:19 PST"]
[Termination "Eliwood44 won on time"]

1. d4 {[%clk 0:03:00.9]} 1... d5 {[%clk 0:02:59.6]} 2. c4 {[%clk 0:03:00.9]}
2... e6 {[%clk 0:02:59.9]} 3. Nc3 {[%clk 0:03:01.1]} 3... c5 {[%clk 0:03:00.2]}
4. e3 {[%clk 0:02:59.3]} 4... cxd4 {[%clk 0:02:57.3]} 5. exd4 {[%clk 0:02:59]}
5... Nf6 {[%clk 0:02:57.3]} 6. Nf3 {[%clk 0:02:58.6]} 6... Nc6 {[%clk
0:02:52.1]} 7. a3 {[%clk 0:02:56.1]} 7... dxc4 {[%clk 0:02:50.5]} 8. Bxc4 {[%clk
0:02:55.1]} 8... b6 {[%clk 0:02:48]} 9. d5 {[%clk 0:02:53.2]} 9... exd5 {[%clk
0:02:36.7]} 10. Bb5 {[%clk 0:02:49.5]} 10... Bd7 {[%clk 0:02:29]} 11. O-O {[%clk
0:02:48]} 11... Be7 {[%clk 0:02:21.8]} 12. Nxd5 {[%clk 0:02:46.8]} 12... Nxd5
{[%clk 0:02:15.3]} 13. Qxd5 {[%clk 0:02:47.7]} 13... Rc8 {[%clk 0:01:39.4]} 14.
Rd1 {[%clk 0:02:37.3]} 14... a6 {[%clk 0:01:27.1]} 15. Bxa6 {[%clk 0:02:33.5]}
15... Be6 {[%clk 0:01:25]} 16. Qxd8+ {[%clk 0:02:25.2]} 16... Rxd8 {[%clk
0:01:23.5]} 17. Rxd8+ {[%clk 0:02:23.6]} 17... Kxd8 {[%clk 0:01:22]} 18. Be3
{[%clk 0:02:21.5]} 18... Kc7 {[%clk 0:01:05.4]} 19. Rc1 {[%clk 0:02:20.6]} 19...
Bf6 {[%clk 0:00:41]} 20. Bf4+ {[%clk 0:02:07.2]} 20... Kd7 {[%clk 0:00:41]} 21.
Rd1+ {[%clk 0:01:42.5]} 21... Ke7 {[%clk 0:00:25.1]} 22. Bd6+ {[%clk 0:01:37.8]}
22... Kd7 {[%clk 0:00:24.8]} 23. Bb5 {[%clk 0:01:09.5]} 23... Rc8 {[%clk
0:00:24.4]} 24. Be5+ {[%clk 0:01:08.9]} 24... Ke7 {[%clk 0:00:20.5]} 25. Bd6+
{[%clk 0:01:07.4]} 25... Kd7 {[%clk 0:00:20.3]} 26. Ne5+ {[%clk 0:01:02.7]}
26... Bxe5 {[%clk 0:00:19.1]} 27. Bxe5+ {[%clk 0:01:02]} 27... Ke7 {[%clk
0:00:18.7]} 28. Bxg7 {[%clk 0:00:59.5]} 28... Na5 {[%clk 0:00:15.6]} 29. Bc3
{[%clk 0:00:53.8]} 29... Nc4 {[%clk 0:00:14.2]} 30. h3 {[%clk 0:00:45.9]} 30...
Rd8 {[%clk 0:00:10]} 31. Bf6+ {[%clk 0:00:38.9]} 31... Kxf6 {[%clk 0:00:10]} 32.
Rxd8 {[%clk 0:00:39]} 32... Nxb2 {[%clk 0:00:10.1]} 33. Rd6 {[%clk 0:00:35.3]}
33... Ke5 {[%clk 0:00:07.3]} 34. Rxb6 {[%clk 0:00:34.8]} 34... Kd4 {[%clk
0:00:06]} 35. a4 {[%clk 0:00:33.5]} 35... Kc5 {[%clk 0:00:03.9]} 36. Rb8 {[%clk
0:00:32]} 36... Bb3 {[%clk 0:00:01.8]} 37. a5 {[%clk 0:00:31.2]} 37... Nc4
{[%clk 0:00:01.8]} 38. Bxc4 {[%clk 0:00:26.8]} 38... Bxc4 {[%clk 0:00:02.7]} 39.
g3 {[%clk 0:00:22.7]} 39... f5 {[%clk 0:00:02.3]} 40. f4 {[%clk 0:00:20.4]}
40... Bd5 {[%clk 0:00:03.2]} 41. Kf2 {[%clk 0:00:20.1]} 41... Kc6 {[%clk
0:00:03.2]} 42. a6 {[%clk 0:00:19.3]} 42... Kc7 {[%clk 0:00:03.6]} 43. Rb2
{[%clk 0:00:19]} 43... Bc6 {[%clk 0:00:03.1]} 44. Ke3 {[%clk 0:00:19.3]} 44...
Be4 {[%clk 0:00:01.1]} 45. a7 {[%clk 0:00:19.4]} 1-0

[Event "Early-Titled-Tuesday-Blitz-March-05-2024"]
[Site "Chess.com"]
[Date "2024.03.05"]
[Round "5"]
[White "nicolasbatista3"]
[Black "ChristianArca"]
[Result "1-0"]
[WhiteElo "2491"]
[BlackElo "2696"]
[TimeControl "180+1"]
[EndTime "8:58:21 PST"]
[Termination "nicolasbatista3 won on time"]

1. d4 {[%clk 0:03:00.9]} 1... Nf6 {[%clk 0:02:59.1]} 2. c4 {[%clk 0:03:01.2]}
2... c5 {[%clk 0:02:56.5]} 3. d5 {[%clk 0:03:01]} 3... e6 {[%clk 0:02:57]} 4.
Nc3 {[%clk 0:03:00.8]} 4... exd5 {[%clk 0:02:56.7]} 5. cxd5 {[%clk 0:03:01.7]}
5... g6 {[%clk 0:02:57.3]} 6. e4 {[%clk 0:03:01.9]} 6... d6 {[%clk 0:02:58]} 7.
Bg5 {[%clk 0:02:55.2]} 7... Bg7 {[%clk 0:02:54]} 8. Bb5+ {[%clk 0:02:55]} 8...
Nbd7 {[%clk 0:02:51.1]} 9. Nf3 {[%clk 0:02:47.3]} 9... O-O {[%clk 0:02:49.8]}
10. a4 {[%clk 0:02:47.4]} 10... Re8 {[%clk 0:02:44.9]} 11. O-O {[%clk
0:02:45.1]} 11... Qc7 {[%clk 0:02:43.8]} 12. Re1 {[%clk 0:02:41.6]} 12... a6
{[%clk 0:02:43.2]} 13. Bf1 {[%clk 0:02:40]} 13... Rb8 {[%clk 0:02:40.6]} 14. Qc2
{[%clk 0:02:27]} 14... Ne5 {[%clk 0:02:19.1]} 15. Nxe5 {[%clk 0:02:24.8]} 15...
Rxe5 {[%clk 0:02:20]} 16. f4 {[%clk 0:02:20.7]} 16... Re8 {[%clk 0:02:19.4]} 17.
Rad1 {[%clk 0:02:21.2]} 17... Ng4 {[%clk 0:02:17.2]} 18. h3 {[%clk 0:01:32.8]}
18... Bd4+ {[%clk 0:02:14.1]} 19. Rxd4 {[%clk 0:01:32.9]} 19... cxd4 {[%clk
0:02:15]} 20. hxg4 {[%clk 0:01:33.8]} 20... dxc3 {[%clk 0:02:15.1]} 21. bxc3
{[%clk 0:01:34.4]} 21... Bxg4 {[%clk 0:02:15.1]} 22. c4 {[%clk 0:01:30.4]} 22...
b5 {[%clk 0:02:14.1]} 23. axb5 {[%clk 0:01:25]} 23... axb5 {[%clk 0:02:15]} 24.
Qf2 {[%clk 0:01:19.8]} 24... bxc4 {[%clk 0:02:13]} 25. Qh4 {[%clk 0:01:19.8]}
25... f5 {[%clk 0:01:28.8]} 26. e5 {[%clk 0:00:53.6]} 26... dxe5 {[%clk
0:01:20.7]} 27. d6 {[%clk 0:00:53.9]} 27... Qxd6 {[%clk 0:01:02.7]} 28. Bxc4+
{[%clk 0:00:53.7]} 28... Kg7 {[%clk 0:01:03.1]} 29. Qh6+ {[%clk 0:00:45.2]}
29... Kh8 {[%clk 0:01:02.3]} 30. Kh2 {[%clk 0:00:27.9]} 30... exf4 {[%clk
0:00:07.5]} 31. Bxf4 {[%clk 0:00:27.7]} 31... Qd4 {[%clk 0:00:05]} 32. Rc1
{[%clk 0:00:15]} 32... Rbc8 {[%clk 0:00:03.9]} 33. Bf7 {[%clk 0:00:04]} 1-0